bitfinex/quotes_ETHUSD_20250114
["timestamp","ask_amount","ask_price","bid_price","bid_amount"]
[1736887759641,0.555,3223.4,3222.1,3.0]
[1736887759953,0.555,3223.4,3222.5,3.10317]
[1736887760279,3.1025,3223.2,3222.3,3.10334]
[1736887761377,0.555,3223.4,3222.1,6.20257176]
[1736887761575,3.65735,3223.4,3222.5,3.10311]
[1736887761779,4.342385,3223.4,3222.5,3.10311]
[1736887762478,1.240035,3223.4,3222.6,3.10307]
[1736887762684,0.005,3223.4,3222.7,3.10289]
[1736887762905,0.005,3223.4,3222.5,3.10313]
[1736887763746,0.005,3223.4,3222.6,0.63463445]
[1736887764782,3.10731,3223.4,3222.6,0.63463445]
[1736887765080,0.55,3223.3,3222.6,0.63463445]
[1736887765285,0.55,3223.3,3222.5,3.10313]
[1736887765443,0.52973922,3223.3,3222.3,3.10333]
[1736887765779,0.52973922,3223.3,3222.2,3.20257176]
[1736887765780,3.10269,3223.1,3222.2,3.10345]
[1736887767079,3.10295,3222.8,3222.0,3.20257176]
[1736887767246,0.55,3222.9,3222.0,3.20257176]
[1736887767575,3.103,3222.7,3221.9,0.60957982]
[1736887768846,0.55,3222.9,3221.9,3.71331982]
[1736887768847,3.65287,3222.9,3221.9,3.71331982]
[1736887769047,3.65287,3222.9,3222.0,3.10362]
[1736887769299,2.93293028,3223.3,3222.0,3.10362]
[1736887769300,0.55,3222.7,3222.0,3.10362]
[1736887769446,6.10253,3223.2,3222.0,3.10362]
[1736887769647,0.55,3222.9,3222.0,3.10362]
[1736887769988,3.10274,3223.0,3222.2,3.10345]
[1736887773077,0.55,3222.9,3221.9,3.81215158]
[1736887773279,3.10289,3222.8,3222.0,3.10362]
[1736887774667,0.55,3222.9,3221.8,6.30637176]
[1736887774866,6.58597028,3222.7,3221.8,3.1038]
[1736887775215,3.65304,3222.7,3221.9,3.10374]
[1736887776417,6.65285,3222.9,3221.9,3.10374]
[1736887776616,6.65285,3222.9,3222.0,3.10362]
[1736887777406,3.0,3222.9,3222.1,0.0310346]
[1736887777578,3.0,3222.9,3222.2,3.1034]
[1736887779393,6.03565028,3223.0,3222.2,3.1034]
[1736887780476,3.1028,3222.9,3222.1,3.10352]
[1736887781829,0.55,3223.0,3222.2,3.10345]
[1736887783111,0.55,3223.0,3222.3,3.10334]
[1736887783817,3.10272,3223.0,3222.2,0.7709]
[1736887784793,3.10272,3223.0,3221.8,3.81076325]
[1736887784794,6.03611028,3222.5,3221.8,3.20257176]
[1736887785103,3.10333,3222.4,3221.8,3.20257176]
[1736887785308,3.1034,3222.3,3221.8,3.20257176]
[1736887785509,0.55,3222.4,3221.4,3.20257176]
[1736887785804,0.55,3222.4,3221.2,3.20257176]
[1736887785805,3.10364,3222.1,3221.2,3.20257176]
[1736887785983,3.10367,3222.0,3221.2,3.10441]
[1736887786175,0.55,3222.1,3221.2,3.10441]
[1736887786374,6.29532,3222.4,3221.0,3.97347176]
[1736887786599,6.29532,3222.4,3221.6,0.7709]
[1736887786883,0.92282503,3222.3,3221.6,0.7709]
[1736887787280,0.192,3222.4,3221.6,0.7709]
[1736887787531,3.10294,3222.8,3222.0,3.10366]
[1736887788886,3.10294,3222.8,3221.8,3.10379]
[1736887789898,3.04280118,3222.8,3221.8,3.10379]
[1736887790096,3.10299,3222.7,3221.8,3.10379]
[1736887790438,0.55,3222.6,3221.6,0.7709]
[1736887790588,2.93293028,3222.2,3221.5,3.20257176]
[1736887790788,6.03646028,3222.2,3221.5,3.20257176]
[1736887791196,6.03646028,3222.2,3221.2,3.10441]
[1736887791735,3.65364,3222.1,3221.2,3.10441]
[1736887791932,3.10366,3222.0,3221.2,3.10441]
[1736887792880,0.55,3222.1,3221.2,3.10441]
[1736887793930,3.65358,3222.1,3221.2,3.10441]
[1736887795902,0.55,3222.1,3221.3,3.10431]
[1736887796436,3.10357,3222.1,3221.3,3.10431]
[1736887796933,3.10357,3222.1,3221.1,1.39302575]
[1736887797109,3.413927,3222.1,3221.2,3.10439]
[1736887799326,0.860357,3222.1,3221.1,0.7833]
[1736887799505,0.860357,3222.1,3220.8,3.98587176]
[1736887799506,0.55,3221.8,3220.8,3.98587176]
[1736887799828,3.10405,3221.6,3220.8,0.7833]
[1736887799997,3.10424,3221.4,3220.6,3.20257176]
[1736887800203,0.502357,3222.1,3220.6,6.30753176]
[1736887800204,0.310357,3222.1,3220.6,6.30753176]
[1736887800401,3.10346,3222.3,3221.4,3.10422]
[1736887800599,3.10353,3222.2,3221.0,0.7833]
[1736887800899,6.03614028,3222.5,3221.3,3.10424]
[1736887800900,3.6534,3222.3,3221.3,3.10424]
[1736887801427,0.55,3221.8,3220.8,3.20257176]
[1736887801592,6.10365,3222.1,3221.2,3.10435]
[1736887801792,2.93293028,3222.2,3220.7,6.83751607]
[1736887802019,3.10345,3222.3,3221.0,0.7826]
[1736887802224,3.10306,3222.7,3221.4,0.7826]
[1736887802388,6.03575028,3222.9,3221.9,3.10366]
[1736887802735,6.03575028,3222.9,3222.0,0.7826]
[1736887802943,3.65264,3223.1,3222.2,3.10344]
[1736887803143,6.10272,3223.0,3222.0,3.88623]
[1736887803290,3.1028,3222.9,3222.0,3.88623]
[1736887805428,3.29444,3223.3,3222.1,3.10356]
[1736887805429,3.10247,3223.3,3222.1,3.10356]
[1736887805654,0.55,3223.1,3222.3,3.10335]
[1736887805852,0.197,3223.4,3222.0,0.7826]
[1736887806153,0.197,3223.4,3222.5,3.10317]
[1736887806154,0.005,3223.4,3222.5,3.10317]
[1736887806653,0.555,3223.4,3222.5,3.10317]
[1736887806956,0.555,3223.4,3222.2,0.7826]
[1736887806957,0.005,3223.4,3222.6,0.03102832]
[1736887807132,3.10732,3223.4,3222.7,0.7826]
[1736887807327,3.10732,3223.4,3222.1,2.93293028]
[1736887807328,3.1027,3223.0,3222.1,3.98517176]
[1736887807527,2.93293028,3223.1,3222.1,7.08871176]
[1736887807754,6.03556028,3223.1,3222.1,3.88614]
[1736887807957,0.55,3223.3,3222.1,0.7826]
[1736887808259,4.03231623,3223.3,3222.3,3.10332]
[1736887808417,0.005,3223.4,3222.7,0.7826]
[1736887809615,0.555,3223.4,3222.7,0.7826]
[1736887809819,3.10734,3223.4,3222.7,0.7826]
[1736887810027,0.310734,3223.3,3222.7,0.7826]
[1736887810256,0.005,3223.4,3223.0,3.10268]
[1736887810458,0.005,3223.4,3223.1,0.81362281]
[1736887810620,0.005,3223.4,3223.1,0.7826]
[1736887811158,0.005,3223.4,3223.3,3.10241]
[1736887811327,0.005,3223.4,3223.3,6.88501]
[1736887814076,0.005,3223.4,3223.3,9.81794028]
[1736887817146,0.005,3223.4,3223.3,6.88501]
[1736887820044,0.005,3223.4,3223.3,9.81794028]
[1736887820534,0.005,3223.4,3223.3,6.88501]
[1736887820848,0.005,3223.4,3223.3,3.88501]
[1736887821359,0.005,3223.4,3223.3,3.10241]
[1736887822195,0.005,3223.4,3223.1,4.4061626]
[1736887822350,0.005,3223.4,3223.2,3.10249]
[1736887823242,0.005,3223.4,3223.3,3.10241]
[1736887823943,0.005,3223.4,3223.3,3.1334305]
[1736887824182,0.005,3223.4,3223.3,3.10241]
[1736887826162,0.005,3223.4,3223.3,6.03534028]
[1736887826364,0.005,3223.4,3223.3,9.81904028]
[1736887828075,1e-05,3223.4,3223.3,9.81904028]
[1736887829465,3.61940894,3226.9,3223.7,3.10202]
[1736887829466,0.194,3226.3,3223.7,3.10202]
[1736887829726,2.93293028,3226.2,3225.0,3.10076]
[1736887829872,0.55,3225.9,3224.7,0.7837]
[1736887830067,3.64992,3225.9,3224.9,3.10079]
[1736887830281,3.0,3225.8,3224.9,3.10079]
[1736887830474,3.1001,3225.7,3224.7,3.88471]
[1736887830692,3.1002,3225.6,3224.7,3.88471]
[1736887830900,0.86002,3225.5,3224.5,3.10123]
[1736887831215,3.10042,3225.4,3224.5,3.10123]
[1736887831567,0.86002,3225.5,3224.3,3.7837]
[1736887831769,3.96034,3225.5,3224.5,3.10122]
[1736887832173,0.06468505,3225.4,3224.5,3.10122]
[1736887832412,0.40250251,3225.3,3224.5,3.10122]
[1736887832811,0.06465039,3225.2,3224.5,3.10122]
[1736887833314,0.06465039,3225.2,3224.7,3.10105]
[1736887833474,0.06465039,3225.2,3224.5,0.60722052]
[1736887833823,3.96031,3225.5,3224.6,3.10113]
[1736887833990,0.06270466,3225.1,3224.5,0.60722052]
[1736887834311,0.55,3225.4,3224.5,3.70843052]
[1736887834515,0.55,3225.4,3224.5,3.10121]
[1736887834672,0.06281444,3225.3,3224.5,3.10121]
[1736887835585,0.06281444,3225.3,3224.0,2.93293028]
[1736887835586,0.55,3225.2,3223.6,3.10209]
[1736887835754,0.55,3225.0,3223.7,3.85618]
[1736887835895,3.65081,3225.0,3224.1,3.10161]
[1736887836091,3.16414048,3224.9,3223.8,6.10183]
[1736887836296,3.10099,3224.8,3223.9,3.10181]
[1736887836535,0.06321048,3224.9,3224.0,3.10172]
[1736887836852,0.06320227,3224.7,3224.0,3.10172]
[1736887836996,0.98462165,3224.8,3224.0,3.10172]
[1736887837197,0.06318494,3224.6,3224.0,3.10172]
[1736887837444,0.06320227,3224.7,3224.0,3.10172]
[1736887837732,0.06318494,3224.6,3224.0,3.10172]
[1736887837928,0.06318494,3224.6,3223.9,0.63135918]
[1736887838129,0.55,3224.6,3223.8,3.1019]
[1736887838332,0.42833363,3224.5,3223.6,3.10208]
[1736887838627,0.55,3224.4,3223.6,0.62955725]
[1736887838830,3.65135,3224.4,3223.6,0.62955725]
[1736887839128,0.06283251,3224.3,3223.6,0.62955725]
[1736887839336,0.06283251,3224.3,3223.6,3.73167725]
[1736887840343,0.47075616,3224.3,3223.6,3.73167725]
[1736887841206,0.47075616,3224.3,3223.6,0.62955725]
[1736887841599,0.55,3224.2,3223.6,0.62955725]
[1736887841942,0.06270854,3224.1,3223.6,3.73165725]
[1736887842101,0.06270854,3224.1,3223.6,0.62955725]
[1736887843342,0.55,3224.0,3223.3,3.10236]
[1736887843512,0.55,3224.0,3222.8,7.5253646]
[1736887843513,3.65211,3223.7,3222.8,7.5253646]
[1736887843704,0.55,3223.5,3222.7,0.60836903]
[1736887844100,0.55,3223.3,3222.5,3.10313]
[1736887844354,0.55,3223.3,3222.6,3.10305]
[1736887844555,0.55,3223.1,3222.6,3.10305]
[1736887844922,0.06186516,3223.0,3222.6,3.10305]
[1736887845716,0.06186516,3223.0,3222.4,3.54236353]
[1736887845961,0.06186516,3223.0,3222.4,6.64558353]
[1736887846265,3.0,3223.8,3222.8,3.10285]
[1736887846403,0.55,3223.6,3222.8,3.10285]
[1736887846610,0.06141367,3223.5,3222.8,3.10285]
[1736887846834,0.55,3223.4,3222.6,3.10303]
[1736887847036,0.55,3223.2,3222.4,0.60943325]
[1736887847365,0.55,3223.0,3222.4,0.60943325]
[1736887847728,0.55,3222.8,3222.1,3.10353]
[1736887848060,0.0609791,3222.7,3222.1,3.10353]
[1736887848370,0.0609791,3222.7,3221.9,3.10367]
[1736887848661,0.0609791,3222.7,3221.8,0.7803]
[1736887848870,2.93293028,3223.3,3222.1,3.10355]
[1736887849019,0.55,3223.0,3222.1,3.10355]
[1736887849367,0.55,3222.8,3222.1,3.10355]
[1736887849570,0.55,3222.8,3222.0,0.62820034]
[1736887849751,0.06088508,3222.7,3222.3,3.10333]
[1736887850123,0.60352803,3223.2,3222.4,3.10324]
[1736887850481,0.3705978,3223.1,3222.5,3.10317]
[1736887850770,0.06063011,3223.0,3222.2,3.88376]
[1736887850970,0.06063011,3223.0,3222.5,3.10309]
[1736887851129,0.55,3223.4,3222.5,3.10309]
[1736887851461,0.06074628,3222.9,3222.5,3.10309]
[1736887851619,0.06074628,3222.9,3222.2,3.88376]
[1736887851620,0.55,3223.5,3222.6,3.10306]
[1736887851964,1.3247618,3223.5,3222.2,0.7803]
[1736887852167,3.55,3223.3,3222.5,3.10315]
[1736887852764,0.06077853,3223.2,3222.5,3.10315]
[1736887853365,0.06077853,3223.2,3222.3,3.10337]
[1736887853512,0.06077853,3223.2,3222.7,3.10289]
[1736887853716,4.00550803,3223.7,3222.7,3.10289]
[1736887853717,0.55,3223.6,3222.7,3.10289]
[1736887853959,0.55,3223.6,3222.1,5.93293028]
[1736887853960,0.05874603,3223.1,3222.8,0.03102715]
[1736887854172,3.0,3223.8,3222.9,3.10277]
[1736887854488,0.05894392,3223.0,3222.9,3.10277]
[1736887854671,0.55,3223.7,3222.6,0.7803]
[1736887854870,0.55,3223.4,3222.5,3.1031]
[1736887855053,2.93293028,3223.5,3222.3,0.7803]
[1736887855054,0.55,3223.2,3222.3,0.7803]
[1736887855413,3.65234,3223.4,3222.5,3.10316]
[1736887855619,0.55,3223.0,3222.5,3.10316]
[1736887855922,0.05706964,3222.9,3222.5,3.10316]
[1736887856471,0.55,3222.8,3222.2,3.10339]
[1736887856628,0.05706966,3222.7,3222.2,3.72497641]
[1736887856820,0.55,3222.6,3222.2,0.62158641]
[1736887857018,0.05702495,3222.5,3222.2,0.62158641]
[1736887857372,0.55,3222.4,3222.2,0.62158641]
[1736887857664,0.0569273,3222.3,3222.2,0.62158641]
[1736887858520,0.0569273,3222.3,3222.2,3.72504641]
[1736887858915,0.55,3222.9,3222.0,3.10364]
[1736887859144,4.0078,3222.9,3222.0,3.10364]
[1736887859344,0.55,3222.7,3222.0,3.10364]
[1736887859862,0.55,3222.5,3222.0,3.10364]
[1736887860064,0.05658224,3222.4,3222.0,3.10364]
[1736887860268,0.05658224,3222.4,3222.1,0.6215239]
[1736887860573,0.05658224,3222.4,3222.3,3.10337]
[1736887860924,0.55,3223.1,3222.3,3.10337]
[1736887861121,0.55,3222.9,3222.3,3.10337]
[1736887861524,0.55,3222.7,3222.3,3.10337]
[1736887862085,0.55,3222.5,3221.8,3.1038]
[1736887862262,0.55,3222.5,3221.4,0.7944]
[1736887862465,0.05643717,3222.4,3221.4,0.7944]
[1736887862836,0.55,3222.7,3221.7,3.10385]
[1736887863186,0.55,3222.5,3221.8,3.10379]
[1736887863487,0.55,3222.3,3221.8,3.10379]
[1736887863630,0.55,3222.1,3221.5,3.73079679]
[1736887863830,0.55,3222.1,3221.2,3.0]
[1736887863831,0.55,3222.1,3221.3,3.10432]
[1736887864049,0.05635707,3222.0,3221.3,3.10432]
[1736887864340,0.55,3221.9,3221.3,3.10432]
[1736887864542,0.05638216,3221.9,3221.4,3.10422]
[1736887864886,0.55,3222.3,3221.5,3.10409]
[1736887865190,0.05625763,3222.2,3221.2,3.54954217]
[1736887865480,0.55,3222.6,3221.3,0.7944]
[1736887865685,0.0559749,3222.5,3221.3,3.7944]
[1736887865851,3.0,3222.8,3221.7,0.7944]
[1736887866055,0.05595734,3222.7,3222.2,3.10345]
[1736887866236,0.55,3222.6,3222.2,3.10345]
[1736887866586,0.55,3222.4,3222.0,3.10362]
[1736887866748,0.05602756,3222.5,3221.7,0.7944]
[1736887866954,0.05604671,3222.3,3222.2,3.10345]
[1736887867262,3.29432,3223.4,3222.3,0.7944]
[1736887867462,3.29432,3223.4,3222.5,3.10316]
[1736887867463,0.38584166,3223.3,3222.5,3.10316]
[1736887867671,3.10185,3223.9,3222.9,3.10278]
[1736887867836,0.05644347,3223.8,3222.6,3.10302]
[1736887868042,3.15838347,3223.8,3222.9,3.10272]
[1736887868437,3.55,3223.7,3222.9,3.10272]
[1736887868636,0.05644347,3223.8,3223.0,3.1026]
[1736887868890,0.05448385,3223.7,3223.1,3.10257]
[1736887869188,0.55,3223.6,3222.8,3.10281]
[1736887869557,0.55,3223.4,3222.9,3.10271]
[1736887869958,0.05463404,3223.3,3222.9,3.10271]
[1736887870448,0.55,3223.2,3222.7,0.63122417]
[1736887870782,0.55,3223.0,3222.3,0.7944]
[1736887871098,3.10193,3223.8,3222.9,3.1027]
[1736887871252,3.70551457,3223.7,3222.7,3.10296]
[1736887871447,3.70551457,3223.7,3222.5,0.61149972]
[1736887871854,0.60348457,3223.7,3222.5,0.61149972]
[1736887872095,3.70554457,3223.7,3222.7,3.10289]
[1736887872273,0.60348457,3223.7,3222.8,3.1028]
[1736887872590,3.10214,3223.6,3222.6,3.10307]
[1736887872794,2.93293028,3223.2,3221.9,0.7944]
[1736887872948,0.55,3222.9,3221.9,3.71465036]
[1736887873324,0.55,3222.9,3222.0,3.10363]
[1736887873325,0.55,3222.7,3222.0,3.10363]
[1736887873454,0.92063582,3222.7,3221.6,0.7944]
[1736887873643,0.05319781,3222.6,3221.6,0.7944]
[1736887873859,0.55,3222.5,3221.8,3.72823704]
[1736887874101,0.55,3222.5,3221.6,3.89839]
[1736887874267,0.55,3222.3,3221.6,3.10399]
[1736887874454,0.55,3222.1,3221.6,3.10399]
[1736887874792,0.05268564,3222.0,3221.6,3.10399]
[1736887874994,0.05268564,3222.0,3220.9,2.93293028]
[1736887874995,0.55,3221.9,3221.0,0.7944]
[1736887875176,0.55,3221.9,3221.2,3.10436]
[1736887875497,0.55,3221.7,3221.3,3.10431]
[1736887875699,0.55,3222.4,3221.3,3.10431]
[1736887875852,0.55,3222.2,3221.3,3.10431]
[1736887876049,0.55,3222.0,3221.3,3.10431]
[1736887876260,0.05232971,3221.9,3221.3,3.10431]
[1736887876471,0.55,3221.8,3221.1,3.10449]
[1736887876697,0.05212571,3221.7,3220.9,0.62970984]
[1736887876896,3.10355,3222.2,3221.3,3.10429]
[1736887877101,0.55,3222.0,3221.3,3.10429]
[1736887877314,0.55,3221.8,3221.3,3.10429]
[1736887877669,0.05184238,3221.7,3221.3,3.10429]
[1736887877865,0.55,3222.0,3221.3,3.10429]
[1736887878213,0.55,3221.8,3220.9,0.62970984]
[1736887878364,0.55,3221.8,3221.2,3.10442]
[1736887878701,0.05198558,3221.7,3221.2,3.10442]
[1736887878899,0.55,3222.2,3220.9,0.62970984]
[1736887879101,0.55,3222.0,3221.2,3.10436]
[1736887879403,0.55,3221.8,3221.3,3.10427]
[1736887879805,0.04996218,3221.7,3221.3,3.10427]
[1736887880210,0.55,3222.4,3221.4,2.9639698]
[1736887880385,0.55,3222.4,3221.7,3.10386]
[1736887880574,3.0,3222.5,3221.7,3.10386]
[1736887880904,0.55,3222.1,3221.2,3.10438]
[1736887881109,0.55,3222.3,3221.1,3.71103028]
[1736887881279,0.55,3222.3,3221.5,3.10404]
[1736887881603,3.10312,3222.6,3221.7,3.10394]
[1736887882104,2.93293028,3222.8,3221.7,3.10394]
[1736887882265,3.0,3222.7,3221.8,3.10383]
[1736887882706,0.55,3222.6,3221.8,3.10383]
[1736887884271,3.65308,3222.6,3221.6,3.10399]
[1736887884572,0.55,3222.4,3221.2,3.0]
[1736887884875,0.55,3222.4,3221.7,3.10393]
[1736887885222,0.55,3222.6,3221.3,3.71588709]
[1736887885368,0.55,3222.6,3221.8,3.10379]
[1736887885773,0.193,3223.0,3221.5,3.1041]
[1736887885774,3.55,3222.8,3221.5,3.1041]
[1736887885965,3.55,3222.8,3221.9,3.10374]
[1736887886169,7.337484,3222.8,3221.9,3.10374]
[1736887886933,0.55,3222.6,3221.7,3.10391]
[1736887887414,0.55,3222.7,3221.8,3.10378]
[1736887888722,0.55,3222.7,3221.9,3.10374]
[1736887889378,3.65299,3222.7,3221.7,3.1039]
[1736887889725,3.65318,3222.5,3221.5,3.10405]
[1736887890219,0.55,3222.5,3221.7,3.10392]
[1736887890380,0.55,3222.6,3221.7,3.10392]
[1736887891020,0.55,3222.6,3221.4,3.10424]
[1736887891397,0.55,3222.7,3221.7,3.1039]
[1736887891586,0.55,3222.7,3221.3,1.38970709]
[1736887891587,0.55,3222.2,3221.5,3.10408]
[1736887891787,0.55,3222.2,3221.3,0.61160709]
[1736887891788,0.55,3222.4,3221.4,3.10424]
[1736887892102,3.1029,3222.8,3221.9,3.10368]
[1736887892405,0.55,3222.6,3221.9,3.10368]
[1736887892919,0.55,3222.4,3222.0,3.10365]
[1736887893517,0.55,3222.2,3221.8,3.1038]
[1736887893724,0.55,3222.2,3221.5,3.21526714]
[1736887893725,0.55,3222.0,3221.5,3.21526714]
[1736887894120,0.55,3221.8,3221.2,3.10438]
[1736887894294,0.55,3221.8,3221.0,3.21526714]
[1736887894295,0.55,3221.8,3221.0,6.31983714]
[1736887894640,0.55,3221.6,3221.0,3.10457]
[1736887894929,0.55,3221.4,3221.0,3.10457]
[1736887895434,0.37037312,3221.8,3221.0,3.10457]
[1736887895435,0.55,3221.7,3221.0,3.10457]
[1736887895723,0.55,3221.7,3220.8,3.63104486]
[1736887895724,0.04966526,3221.6,3221.1,3.1045]
[1736887895967,0.55,3221.5,3221.1,3.1045]
[1736887896338,0.55,3221.3,3221.1,3.1045]
[1736887896865,0.04959457,3221.2,3220.8,3.73578486]
[1736887897051,0.55,3221.3,3220.9,3.1047]
[1736887897371,3.10385,3221.8,3220.9,3.1047]
[1736887897372,0.04959457,3221.2,3220.9,3.1047]
[1736887897681,0.55,3221.7,3220.9,3.1047]
[1736887897833,0.55,3221.9,3221.0,3.10459]
[1736887898026,0.55,3221.5,3221.0,3.10459]
[1736887898229,0.04961142,3221.4,3221.0,3.10459]
[1736887898473,0.55,3221.3,3221.0,3.10459]
[1736887898677,0.55,3221.8,3220.8,0.63104486]
[1736887898980,0.55,3221.8,3221.0,3.10454]
[1736887899141,0.55,3221.6,3221.0,3.10454]
[1736887899468,0.55,3221.6,3220.8,3.73585486]
[1736887899469,0.04962794,3221.5,3220.8,3.73580486]
[1736887899704,0.55,3221.4,3220.8,3.73580486]
[1736887899883,0.55,3221.4,3220.7,3.1049]
[1736887900077,0.55,3221.2,3220.7,3.1049]
[1736887900443,0.55,3221.5,3220.7,3.1049]
[1736887900745,0.04961654,3221.4,3220.7,3.1049]
[1736887902229,0.55,3221.3,3220.6,3.55037392]
[1736887902557,3.12593028,3222.1,3220.8,0.7781]
[1736887902760,3.6537,3222.0,3220.8,0.7781]
[1736887902936,3.70344306,3222.0,3220.8,0.7781]
[1736887903278,0.59974306,3222.0,3220.9,2.93293028]
[1736887903570,0.04974306,3222.0,3221.5,3.10411]
[1736887903949,0.55,3222.4,3221.5,3.10411]
[1736887904152,0.55,3221.8,3221.5,3.10411]
[1736887904671,0.04901491,3221.7,3221.1,3.10447]
[1736887904828,0.55,3222.1,3221.4,3.10421]
[1736887905167,0.55,3221.9,3221.4,3.10421]
[1736887905469,0.04917567,3221.8,3221.4,3.10421]
[1736887905691,0.04917567,3221.8,3221.5,3.10407]
[1736887905857,0.04917567,3221.8,3221.1,3.10448]
[1736887906184,6.10321,3222.5,3221.1,3.10448]
[1736887906185,0.0491583,3221.7,3221.4,3.10415]
[1736887906565,0.55,3222.3,3221.2,3.10443]
[1736887906750,0.55,3222.3,3221.4,3.10416]
[1736887907081,0.55,3222.1,3221.4,3.10416]
[1736887907305,0.55,3221.9,3221.4,3.10416]
[1736887907470,0.04917567,3221.8,3221.4,3.10416]
[1736887907670,0.04917567,3221.8,3221.7,3.10395]
[1736887907905,6.03561028,3223.1,3221.4,0.7727]
[1736887908199,3.29584,3222.9,3221.9,3.10369]
[1736887908353,3.04944327,3223.0,3221.6,0.03103497]
[1736887908551,0.04940856,3222.8,3222.0,3.10363]
[1736887908748,0.04942592,3222.9,3222.0,3.10363]
[1736887908952,0.0493912,3222.7,3222.0,3.10363]
[1736887909178,0.55,3222.7,3222.0,3.10363]
[1736887909454,6.03535028,3223.3,3221.4,0.7727]
[1736887909455,0.193,3223.6,3221.9,3.70563028]
[1736887909687,3.50771958,3223.5,3222.5,3.10314]
[1736887909894,3.65234,3223.4,3222.5,3.10314]
[1736887910157,6.15214577,3223.3,3222.4,3.10327]
[1736887910557,6.15214577,3223.3,3222.1,3.10353]
[1736887910558,3.6527,3223.0,3222.1,3.10353]
[1736887911062,0.04999865,3222.9,3221.9,3.0]
[1736887911212,0.55,3222.8,3222.3,3.10329]
[1736887911368,3.3557491,3223.5,3222.3,3.10329]
[1736887911568,0.55,3222.6,3222.0,3.10366]
[1736887911803,0.3557491,3223.5,3222.1,2.93293028]
[1736887912004,6.29516,3223.6,3222.2,3.7727]
[1736887912005,3.10216,3223.6,3222.2,3.7727]
[1736887912312,0.0502734,3223.5,3222.4,6.03615028]
[1736887912513,3.12593028,3224.2,3222.6,3.10304]
[1736887912809,0.55,3223.7,3222.9,3.10278]
[1736887913171,0.55,3223.5,3223.0,3.10262]
[1736887913371,0.05018174,3223.6,3223.1,3.10251]
[1736887913573,0.05017683,3223.4,3223.3,3.10241]
[1736887913778,0.0501826,3223.5,3223.4,3.10231]
[1736887913999,3.0,3224.2,3223.4,3.10231]
[1736887914196,0.0503924,3223.5,3223.4,3.10231]
[1736887914387,0.55,3224.1,3223.4,3.10231]
[1736887914588,0.05041027,3223.5,3223.4,3.10231]
[1736887914789,0.55,3224.1,3223.4,3.10231]
[1736887914992,0.05042309,3223.5,3223.1,3.10254]
[1736887915218,0.55,3224.1,3223.1,3.10252]
[1736887915420,0.05040574,3223.4,3223.1,3.10252]
[1736887915606,1.215163,3224.1,3222.7,3.70563028]
[1736887915607,0.55,3223.9,3222.7,3.70563028]
[1736887915809,0.55,3223.2,3222.7,0.7727]
[1736887915993,6.69977328,3224.1,3222.8,3.10288]
[1736887915994,3.65211,3223.7,3222.8,3.10288]
[1736887916522,0.55,3223.5,3222.8,3.10288]
[1736887916681,0.55,3223.3,3222.5,3.10316]
[1736887916883,0.55,3223.3,3222.1,3.97972831]
[1736887916884,0.55,3223.1,3222.1,3.97972831]
[1736887917182,3.10241,3223.3,3222.4,3.10324]
[1736887917183,0.55,3222.9,3222.4,3.10324]
[1736887917382,0.55,3222.9,3222.2,3.10345]
[1736887917582,0.05171266,3223.0,3222.2,3.10345]
[1736887917583,0.55,3223.0,3222.2,3.10345]
[1736887917818,0.55,3222.7,3222.2,3.10345]
[1736887917988,0.55,3222.7,3221.9,0.7727]
[1736887917989,0.55,3222.8,3221.9,3.87642]
[1736887918189,0.05141523,3222.6,3222.2,3.10341]
[1736887918395,0.05143258,3222.7,3222.2,3.10341]
[1736887918590,0.55,3223.1,3222.2,3.10341]
[1736887918791,0.91525,3223.1,3222.2,3.10341]
[1736887919007,0.55,3222.9,3222.2,3.10341]
[1736887919414,0.55,3222.7,3222.2,3.10341]
[1736887919795,0.04965855,3222.6,3222.2,3.10341]
[1736887920032,0.04965855,3222.6,3222.3,3.10335]
[1736887920417,0.55,3223.2,3222.3,3.10335]
[1736887920599,1.215244,3223.2,3222.3,3.10335]
[1736887920803,0.55,3223.0,3222.3,3.10335]
[1736887921122,0.55,3222.8,3222.3,3.10335]
[1736887921325,0.04934648,3222.7,3221.9,3.71225131]
[1736887921540,0.55,3222.6,3221.6,6.96255859]
[1736887921828,0.55,3222.6,3221.3,3.84843398]
[1736887921829,3.10246,3223.3,3222.0,0.8226]
[1736887921994,0.860246,3223.2,3222.0,0.8226]
[1736887922313,0.04915645,3223.2,3222.0,0.8226]
[1736887922629,3.193,3223.7,3222.5,3.10314]
[1736887922807,0.55,3223.0,3222.2,2.93293028]
[1736887923001,3.0,3223.4,3222.0,0.8226]
[1736887923002,0.55,3223.3,3222.4,3.10323]
[1736887923305,0.55,3222.8,3222.4,3.10323]
[1736887923513,0.55,3222.6,3222.2,3.10344]
[1736887923818,0.55,3222.6,3222.1,3.10353]
[1736887923819,0.04898888,3222.5,3222.1,3.10353]
[1736887925026,0.04898888,3222.5,3222.0,0.6145095]
[1736887925230,8.88e-06,3222.5,3222.4,6.92587]
[1736887925429,3.10124,3224.6,3222.6,0.8226]
[1736887925430,3.29433,3224.5,3222.6,0.8226]
[1736887925744,0.66696353,3224.4,3223.6,3.10208]
[1736887925908,0.66696353,3224.4,3223.2,3.9251]
[1736887925909,0.66696353,3224.4,3223.4,6.03524028]
[1736887926122,0.0442375,3224.4,3223.5,3.10221]
[1736887926453,3.0,3224.8,3223.9,3.10178]
[1736887926750,0.15592707,3225.5,3223.7,6.03489028]
[1736887926751,3.10074,3225.1,3223.7,6.03489028]